[Event "26th Hit Open-A 2022"]
[Site "Nova Gorica"]
[Date "2022.09.21"]
[Round "8.34"]
[White "Walker, Samuel A"]
[Black "Zlatanovic, Srdjan"]
[Result "1-0"]
[ECO "A13"]
[WhiteElo "2028"]
[BlackElo "1740"]
[Annotator "TA"]
[PlyCount "101"]
[EventDate "2022.09.16"]
[EventType "swiss"]
[EventCountry "SLO"]
[SourceTitle "playchess.com"]
[Source "ChessBase"]
[SourceQuality "1"]
[TimeControl "5400+30"]

{[%evp 9,101,10,58,53,58,28,16,17,43,24,73,76,75,58,89,81,81,72,95,91,95,90,153,72,81,95,174,148,201,179,191,136,161,153,149,143,143,143,158,150,156,143,137,103,109,102,113,98,106,79,77,74,83,89,113,75,86,48,401,408,377,370,402,393,348,314,314,309,418,443,412,447,467,467,463,0,434,387,450,446,739,703,792,790,787,776,2296,2260,10082,5410,29984,29985,29984,29985]} 1. g3 {[%emt 0:00:07]} d5 {[%emt 0:01:22]} 2. c4 {[%emt 0:00:09]} Nf6 {[%emt 0:00:16]} 3. Bg2 {[%emt 0:00:11]} e6 {[%emt 0:00:40]} 4. Nf3 {[%emt 0:00:07]} Nbd7 {[%emt 0:00:26]} 5. O-O {[%emt 0:00:12]} c5 {[%emt 0:01:07]} (5... dxc4 $11 {should be considered.} 6. Nc3 Bd6) 6. cxd5 $14 {[%emt 0:01:04] A13: English Opening: 1...e6.} exd5 {[%emt 0:00:52]} 7. b3 {[%emt 0:00:20]} Be7 {[%emt 0:00:14]} 8. d4 {[%emt 0:00:13] The position is equal.} O-O {[%emt 0:00:45]} 9. Bb2 {[%emt 0:00:24]} Nb6 {[%emt 0:00:44]} (9... b6 $11) 10. dxc5 $16 {[%emt 0:01:07]} Bxc5 {[%emt 0:00:20] [#]} 11. Qc2 $146 {[%emt 0:01:07]} ({Predecessor:} 11. Na3 Re8 12. Rc1 Bf8 13. Nb5 Bd6 14. Nxd6 Qxd6 15. Nd4 a6 16. Qd3 Bg4 17. h3 {1-0 (27) Peyrer,K (2244)-Moerwald,M (1555) Playchess.com INT 2020}) 11... Bd6 {[%emt 0:01:23]} 12. Nc3 {[%emt 0:00:34]} Be6 {[%emt 0:00:37]} 13. Rac1 {[%emt 0:00:24]} Qd7 {[%emt 0:06:08]} 14. Qb1 {[%emt 0:00:57]} Rac8 {[%emt 0:02:18]} 15. Rfd1 {[%emt 0:00:31]} Bh3 {[%emt 0:03:54]} (15... Bc5 $142) 16. Nd4 {[%emt 0:06:18]} (16. a4 $142) 16... Bxg2 {[%emt 0:00:52]} 17. Kxg2 {[%emt 0:00:10]} Qg4 {[%emt 0:06:24]} (17... Rfe8 $16 {was necessary.}) 18. Qf5 {[%emt 0:00:44]} Bc5 {[%emt 0:04:58]} (18... Rfe8 $16) 19. Qxg4 {[%emt 0:05:22] Active counter play!} Nxg4 {[%emt 0:00:22]} 20. e3 {[%emt 0:00:15]} (20. Ncb5 $18) 20... Bxd4 {[%emt 0:02:47]} 21. Rxd4 {[%emt 0:00:39]} Nf6 {[%emt 0:01:57]} 22. Rdd1 {[%emt 0:03:52]} Rc6 {[%emt 0:04:32]} 23. Nb5 {[%emt 0:06:19][%cal Bc3b5,Bb5d4,Bd4f5,Bf5d6][%mdl 32]} Ra8 {[%emt 0:02:33]} 24. Rxc6 {[%emt 0:12:09]} bxc6 {[%emt 0:00:09]} 25. Nd4 {[%emt 0:00:08]} c5 {[%emt 0:04:22]} 26. Nf5 {[%emt 0:01:50]} Kf8 {[%emt 0:06:53]} 27. a4 {[%emt 0:06:54] Black must now prevent Bxf6.} a5 {[%emt 0:06:13]} 28. Ba3 {[%emt 0:01:34]} Rc8 {[%emt 0:02:13]} 29. Rc1 {[%emt 0:00:14]} Nbd7 {[%emt 0:00:47]} 30. Nd6 {[%emt 0:03:42]} Rc7 {[%emt 0:00:25]} 31. Nb5 $36 {[%emt 0:00:30][%mdl 2048] White is on the roll.} Rc6 {[%emt 0:00:27]} 32. f3 {[%emt 0:00:21]} Ke7 {[%emt 0:00:31]} 33. g4 {[%emt 0:01:25]} Ke6 $2 {[%emt 0:00:20][%mdl 8192] [#] White leaves nothing to chance now.} ({Better is} 33... Ne8 $14) 34. Nd4+ $18 {[%emt 0:00:55]} Kd6 {[%emt 0:01:01]} 35. Nxc6 {[%emt 0:00:31]} Kxc6 {[%emt 0:00:05][%mdl 4096] Endgame KRB-KNN} 36. Kf2 {[%emt 0:00:59]} Ne8 {[%emt 0:01:38]} 37. Ke2 {[%emt 0:02:52]} Nd6 {[%emt 0:00:19]} 38. h3 {[%emt 0:00:28]} f5 {[%emt 0:00:49]} 39. gxf5 {[%emt 0:02:28]} Nxf5 {[%emt 0:00:02]} 40. Bb2 {[%emt 0:00:22] Prevents d4.} Ng3+ {[%emt 0:01:37]} 41. Kf2 {[%emt 0:05:17]} Nh5 {[%emt 0:00:01]} 42. Ke2 $2 {[%emt 0:01:19]} ({White should try} 42. Bc3 $18) 42... g6 $2 {[%emt 0:00:33][%mdl 8192]} (42... Ng3+ $1 $11 {and Black has nothing to worry.} 43. Kf2 Nf5) 43. Kd2 {[%emt 0:01:05]} Kb6 {[%emt 0:01:07]} 44. Rg1 {[%emt 0:00:39]} c4 {[%emt 0:00:38]} (44... Kb7 $142 45. Bc3 Kb6) 45. Bd4+ {[%emt 0:00:27]} Kc6 {[%emt 0:00:55]} 46. bxc4 {[%emt 0:00:26]} dxc4 {[%emt 0:00:07]} 47. Rg5 {[%emt 0:01:10]} Nb6 {[%emt 0:00:42]} 48. Rc5+ {[%emt 0:00:26]} Kd6 {[%emt 0:00:30] [#]} 49. Rxh5 $1 {[%emt 0:00:46][%cal Od4b6][%mdl 512]} gxh5 {[%emt 0:00:21]} (49... c3+ 50. Kc2) 50. Bxb6 {[%emt 0:00:08]} Kc6 {[%emt 0:00:32]} 51. Bxa5 {[%emt 0:00:12] Weighted Error Value: White=0.26 (precise) /Black=0.70} 1-0

[Event "26th Hit Open-A 2022"]
[Site "Nova Gorica"]
[Date "2022.09.21"]
[Round "8.36"]
[White "Bajec, Borut"]
[Black "Goroshkova, Liudmila"]
[Result "1/2-1/2"]
[ECO "D37"]
[WhiteElo "1732"]
[BlackElo "1961"]
[Annotator "TA"]
[PlyCount "67"]
[EventDate "2022.09.16"]
[EventType "swiss"]
[EventCountry "SLO"]
[SourceTitle "playchess.com"]
[Source "ChessBase"]
[SourceQuality "1"]
[TimeControl "5400+30"]

{[%evp 18,67,-5,-18,-15,-24,-22,-16,-27,-32,0,0,0,0,0,0,-15,-20,-8,-8,-6,-25,17,19,18,20,20,20,18,26,27,26,38,8,9,9,10,6,6,7,13,0,2,0,19,0,11,0,21,0,17,0]} 1. d4 {[%emt 0:00:09]} d5 {[%emt 0:00:04]} 2. c4 {[%emt 0:00:41]} e6 {[%emt 0:00:04]} 3. Nc3 {[%emt 0:00:21]} Nf6 {[%emt 0:00:05]} 4. Nf3 {[%emt 0:00:51]} Be7 {[%emt 0:00:40]} 5. e3 {[%emt 0:00:21]} O-O {[%emt 0:00:35]} 6. Bd3 {[%emt 0:00:38]} Nbd7 {[%emt 0:00:05]} 7. O-O {[%emt 0:00:30]} b6 {[%emt 0:00:18]} 8. e4 {[%emt 0:01:44]} dxe4 {[%emt 0:00:46]} 9. Nxe4 {[%emt 0:00:11]} Bb7 {[%emt 0:00:04]} 10. Re1 {[%emt 0:04:29]} c5 {[%emt 0:01:04] D37: Queen's Gambit Declined: 5 Bf4.} 11. dxc5 $1 {[%emt 0:01:31]} Nxc5 {[%emt 0:00:51]} 12. Nxc5 {[%emt 0:01:46]} Bxc5 {[%emt 0:00:24]} 13. Bg5 {[%emt 0:02:04]} Be7 {[%emt 0:05:56]} 14. Qe2 {[%emt 0:06:00]} Qc7 {[%emt 0:06:19]} 15. Rad1 {[%emt 0:06:33] [#]} h6 $146 {[%emt 0:12:34]} ({Predecessor:} 15... Rad8 16. a3 Ng4 17. Bxe7 Qxe7 18. h3 Nf6 19. Qe3 Qc7 20. b4 Rfe8 21. Ne5 Ba8 {0-1 (40) Uuriintuya,U (2172)-Chitlange,S (1928) New Delhi 2016}) 16. Bh4 {[%emt 0:00:43]} Qc6 {[%emt 0:03:04]} 17. b3 {[%emt 0:11:28]} Rfe8 {[%emt 0:03:30]} 18. Bxf6 {[%emt 0:18:05]} Bxf6 {[%emt 0:02:19]} 19. Bb1 {[%emt 0:00:29]} e5 {[%emt 0:01:45]} 20. Be4 {[%emt 0:02:31]} Qxe4 {[%emt 0:01:52]} 21. Qxe4 {[%emt 0:00:44]} Bxe4 {[%emt 0:00:04]} 22. Rxe4 {[%emt 0:00:08]} Rad8 {[%emt 0:00:18]} 23. Rde1 {[%emt 0:01:06]} Re6 {[%emt 0:03:53]} 24. Kf1 {[%emt 0:01:41]} ({Don't go for} 24. Nxe5 $2 Rxe5 25. Rxe5 Bxe5 $19) 24... Rde8 {[%emt 0:07:06]} 25. h3 {[%emt 0:01:39]} g6 {[%emt 0:00:55] The position is equal.} 26. Rd1 {[%emt 0:00:18]} Bg7 {[%emt 0:04:56]} 27. g4 {[%emt 0:02:23]} f5 {[%emt 0:01:35]} 28. gxf5 {[%emt 0:00:14]} gxf5 {[%emt 0:00:02]} 29. Re2 {[%emt 0:00:16]} Bf6 {[%emt 0:02:52]} 30. Rd5 {[%emt 0:00:47]} R8e7 {[%emt 0:06:09]} 31. Kg2 {[%emt 0:05:34]} Rg7+ {[%emt 0:02:29]} 32. Kf1 {[%emt 0:00:13] [#] Nd4 is the strong threat.} Rge7 {[%emt 0:00:47]} 33. Kg2 {[%emt 0:00:02]} Rg7+ {[%emt 0:00:20]} 34. Kf1 {[%emt 0:00:02] A balanced but interesting game.  Weighted Error Value: White=0.06 (flawless) /Black=0.08 (flawless)} 1/2-1/2

[Event "26th Hit Open-A 2022"]
[Site "Nova Gorica"]
[Date "2022.09.21"]
[Round "8.37"]
[White "Rigatti, Giorgio"]
[Black "Labrovic, Jakov"]
[Result "0-1"]
[ECO "C50"]
[WhiteElo "1763"]
[BlackElo "1882"]
[Annotator "NA COMBH"]
[PlyCount "42"]
[EventDate "2022.09.16"]
[EventType "swiss"]
[EventCountry "SLO"]
[SourceTitle "playchess.com"]
[Source "ChessBase"]
[SourceQuality "1"]
[TimeControl "5400+30"]

1. e4 {[%emt 0:08:54]} e5 {[%emt 0:00:06]} 2. Nf3 {[%emt 0:00:29]} Nc6 {[%emt 0:00:07]} 3. Bc4 {[%emt 0:01:30]} f5 {[%emt 0:00:34]} 4. d4 {[%emt 0:01:44]} exd4 {[%emt 0:00:34]} 5. Ng5 {[%emt 0:06:54]} Ne5 {[%emt 0:01:50]} 6. Bxg8 {[%emt 0:06:26]} Rxg8 {[%emt 0:02:29]} 7. Qxd4 {[%emt 0:02:19]} Qf6 {[%emt 0:05:43]} 8. Nc3 {[%emt 0:08:39]} c6 {[%emt 0:12:41]} 9. Bf4 {[%emt 0:09:17]} Bd6 {[%emt 0:02:23]} 10. Be3 {[%emt 0:09:38]} Bc7 {[%emt 0:07:15]} 11. Nf3 {[%emt 0:08:10]} f4 {[%emt 0:02:50]} 12. Nxe5 {[%emt 0:00:49]} Bxe5 {[%emt 0:00:43]} 13. Qc4 {[%emt 0:01:53]} d5 {[%emt 0:05:00]} 14. exd5 {[%emt 0:01:37]} Bxc3+ {[%emt 0:01:57]} 15. bxc3 {[%emt 0:00:09]} fxe3 {[%emt 0:00:26]} 16. O-O-O {[%emt 0:01:01]} cxd5 {[%emt 0:09:00]} 17. Qxd5 {[%emt 0:01:25]} Be6 {[%emt 0:03:14]} 18. Qb5+ {[%emt 0:02:34]} Kf7 {[%emt 0:02:05]} 19. fxe3 {[%emt 0:00:37]} Kg6 {[%emt 0:00:56]} 20. Rhf1 {[%emt 0:00:56]} Qxc3 {[%emt 0:02:56]} 21. Rd6 {[%emt 0:02:57]} Qa3+ {[%emt 0:00:31]} 0-1

[Event "26th Hit Open-A 2022"]
[Site "Nova Gorica"]
[Date "2022.09.21"]
[Round "8.38"]
[White "Oestmann, Lukas"]
[Black "Budai, Federico"]
[Result "1/2-1/2"]
[ECO "C90"]
[WhiteElo "1620"]
[BlackElo "1712"]
[Annotator "NA COMBH"]
[PlyCount "67"]
[EventDate "2022.09.16"]
[EventType "swiss"]
[EventCountry "SLO"]
[SourceTitle "playchess.com"]
[Source "ChessBase"]
[SourceQuality "1"]
[TimeControl "5400+30"]

1. e4 {[%emt 0:00:02]} e5 {[%emt 0:00:10]} 2. Nf3 {[%emt 0:00:04]} Nc6 {[%emt 0:00:12]} 3. Bb5 {[%emt 0:00:04]} a6 {[%emt 0:00:30]} 4. Ba4 {[%emt 0:00:05]} Nf6 {[%emt 0:00:12]} 5. O-O {[%emt 0:00:05]} b5 {[%emt 0:00:30]} 6. Bb3 {[%emt 0:00:11]} Be7 {[%emt 0:00:22]} 7. Re1 {[%emt 0:00:05]} d6 {[%emt 0:01:00]} 8. c3 {[%emt 0:00:26]} Bg4 {[%emt 0:01:31]} 9. h3 {[%emt 0:02:41]} Bh5 {[%emt 0:01:23]} 10. d3 {[%emt 0:12:38]} O-O {[%emt 0:08:33]} 11. Nbd2 {[%emt 0:05:24]} Na5 {[%emt 0:07:58]} 12. Bc2 {[%emt 0:05:03]} c5 {[%emt 0:00:38]} 13. Nf1 {[%emt 0:02:30]} Nc6 {[%emt 0:02:07]} 14. Ng3 {[%emt 0:02:42]} Bg6 {[%emt 0:05:30]} 15. Nh4 {[%emt 0:09:34]} Re8 {[%emt 0:10:26]} 16. f4 {[%emt 0:11:58]} exf4 {[%emt 0:16:37]} 17. Bxf4 {[%emt 0:01:32]} Nd7 {[%emt 0:12:33]} 18. Nxg6 {[%emt 0:04:50]} hxg6 {[%emt 0:02:25]} 19. Rf1 {[%emt 0:04:14]} Nb6 {[%emt 0:06:38]} 20. d4 {[%emt 0:09:22]} cxd4 {[%emt 0:02:41]} 21. cxd4 {[%emt 0:00:05]} Bf6 {[%emt 0:00:31]} 22. Ne2 {[%emt 0:03:27]} Nc4 {[%emt 0:03:18]} 23. b3 {[%emt 0:01:18]} Na3 {[%emt 0:02:46]} 24. Bd3 {[%emt 0:08:17]} Nxd4 {[%emt 0:03:12]} 25. Rc1 {[%emt 0:00:17]} Nxe2+ {[%emt 0:01:41]} 26. Qxe2 {[%emt 0:00:29]} Qb6+ {[%emt 0:00:08]} 27. Be3 {[%emt 0:02:01]} Bd4 {[%emt 0:00:20]} 28. Bxd4 {[%emt 0:00:11]} Qxd4+ {[%emt 0:00:04]} 29. Kh1 {[%emt 0:00:11]} b4 {[%emt 0:08:31]} 30. Qf3 {[%emt 0:00:45]} Re7 {[%emt 0:01:39]} 31. e5 {[%emt 0:01:19]} Rae8 {[%emt 0:00:41]} 32. exd6 {[%emt 0:01:22]} Qxd6 {[%emt 0:00:31]} 33. Rcd1 {[%emt 0:03:42]} Qe6 {[%emt 0:01:03]} 34. Qf4 {[%emt 0:01:37]} 1/2-1/2

[Event "26th Hit Open-A 2022"]
[Site "Nova Gorica"]
[Date "2022.09.21"]
[Round "8.39"]
[White "Leitner, Gerald"]
[Black "Azinovic, Igor"]
[Result "1-0"]
[ECO "A05"]
[WhiteElo "2181"]
[BlackElo "1814"]
[Annotator "TA"]
[PlyCount "41"]
[EventDate "2022.09.16"]
[EventType "swiss"]
[EventCountry "SLO"]
[SourceTitle "playchess.com"]
[Source "ChessBase"]
[SourceQuality "1"]
[TimeControl "5400+30"]

{[%evp 14,41,0,0,2,11,55,43,56,53,70,73,61,59,127,115,129,133,155,156,227,165,169,172,421,431,416,334,902,920]} 1. e4 {[%emt 0:00:08]} c5 {[%emt 0:00:09]} 2. Nf3 {[%emt 0:00:54]} d6 {[%emt 0:00:13]} 3. g3 {[%emt 0:01:13]} Nf6 {[%emt 0:00:36]} 4. d3 {[%emt 0:00:01]} Nc6 {[%emt 0:02:41]} 5. Bg2 {[%emt 0:00:58]} g6 {[%emt 0:00:24]} 6. O-O {[%emt 0:00:23]} Bg7 {[%emt 0:00:10]} 7. Nbd2 {[%emt 0:00:01] 7.Re1 is the modern continuation.} O-O {[%emt 0:00:18]} 8. Re1 {[%emt 0:01:23]} Be6 {[%emt 0:04:14] A05: Réti Opening: 1 Nf3 Nf6.} 9. c3 {[%emt 0:02:23]} Qd7 {[%emt 0:01:46]} 10. Ng5 $1 {[%emt 0:02:52] [#]} Bg4 $146 {[%emt 0:01:34] White is slightly better.} ({Predecessor:} 10... h6 11. Nxe6 Qxe6 12. f4 b5 13. e5 dxe5 14. Nb3 Rad8 15. Nxc5 Qc8 16. fxe5 Nd7 17. Nxd7 Qxd7 {½-½ (40) Schumacher,P (1486)-Czegledi,D (1060) Rheinhausen 2011}) 11. f3 {[%emt 0:00:10]} h6 {[%emt 0:02:08]} 12. fxg4 {[%emt 0:00:10] [#] Threatens to win with Ngf3.} hxg5 {[%emt 0:00:14]} 13. h3 {[%emt 0:00:19]} Ne8 {[%emt 0:11:29]} (13... b5 $14) 14. Nf3 $16 {[%emt 0:00:48]} f6 {[%emt 0:00:21]} 15. Be3 {[%emt 0:02:19]} b6 {[%emt 0:03:45]} 16. d4 {[%emt 0:03:50] White is more active.} Qc7 {[%emt 0:04:31]} (16... Rd8 $16 17. Qc2 e5) 17. Rc1 {[%emt 0:06:16]} Rd8 {[%emt 0:02:14]} 18. b4 {[%emt 0:05:38]} d5 $2 {[%emt 0:03:39] [#]} (18... e5 19. Qb3+ (19. bxc5 dxc5 20. Qa4 Nd6 $16) 19... Kh8) 19. exd5 $18 {[%emt 0:01:15]} Rxd5 {[%emt 0:00:26]} 20. Qb3 {[%emt 0:02:02]} Kh7 $2 {[%emt 0:00:54]} (20... c4 21. Qxc4 e6) 21. Qxd5 {[%emt 0:00:33] Black got outplayed after the opening.  Weighted Error Value: White=0.11 (very precise) /Black=0.59} 1-0

[Event "26th Hit Open-A 2022"]
[Site "Nova Gorica"]
[Date "2022.09.21"]
[Round "8.40"]
[White "Di Lascio, Savino"]
[Black "Bajo, Tin"]
[Result "1/2-1/2"]
[ECO "A07"]
[WhiteElo "1793"]
[BlackElo "1999"]
[Annotator "TA"]
[PlyCount "146"]
[EventDate "2022.09.16"]
[EventType "swiss"]
[EventCountry "SLO"]
[SourceTitle "playchess.com"]
[Source "ChessBase"]
[SourceQuality "1"]
[TimeControl "5400+30"]

{[%evp 12,146,25,8,24,0,14,-16,-13,-18,-26,-35,-22,-29,-27,-58,-58,-58,-58,-58,-58,-61,-43,-55,-36,-49,-41,-43,-32,-57,-17,-54,0,-53,-49,-48,-47,-49,-39,-39,-39,-35,-43,-41,0,0,0,0,0,0,0,0,0,-8,-8,-8,-8,-8,-8,-9,-9,-10,-10,-10,-12,-12,-12,-1024,-547,-1279,-1158,-29962,-29963,-29975,-29975,-29975,-29973,-29973,-29974,-29977,-29973,-29976,-29977,-29977,-29978,-29976,-29972,-29974,-1,0,0,-11794,-8,-8,-8,-8,-8,-8,-8,-8,-8,-8,-8,-8,-8,-8,-8,-8,-8,-8,-8,-8,-8,-8,-8,-8,-8,-8,-8,-8,-8,-8,-8,-8,-8,-8,-8,-8,0,-8,0,-8,0,0,0,0,0]} 1. Nf3 {[%emt 0:00:09]} d5 {[%emt 0:00:08]} 2. g3 {[%emt 0:00:23]} Nf6 {[%emt 0:00:07]} 3. Bg2 {[%emt 0:00:12]} c6 {[%emt 0:00:08]} 4. O-O {[%emt 0:00:10]} Bg4 {[%emt 0:00:21]} 5. d3 {[%emt 0:00:13]} Nbd7 {[%emt 0:00:07]} 6. Nbd2 {[%emt 0:00:23]} e5 {[%emt 0:00:22]} 7. c4 {[%emt 0:00:28]} (7. e4 {looks sharper.} Bc5 8. exd5 Nxd5 9. h3) 7... Bd6 {[%emt 0:01:04] A07: Réti Opening: New York and Capablanca Systems.} 8. a3 {[%emt 0:00:21]} a5 {[%emt 0:00:59]} 9. b3 {[%emt 0:00:10]} (9. cxd5 {with more complications.} cxd5 10. e4 dxe4 11. Nc4) 9... O-O {[%emt 0:00:24]} 10. Bb2 {[%emt 0:00:09]} Re8 {[%emt 0:00:22] [#]} 11. e4 $146 {[%emt 0:00:16]} ({Predecessor:} 11. h3 Bh5 12. Bc3 e4 13. dxe4 dxe4 14. Nd4 e3 15. Nf5 exf2+ 16. Rxf2 Bc5 17. Bd4 Bxd4 18. Nxd4 {0-1 (30) Sysoykina,L (1974)-Nasybullin,V (2397) Kimry 2009}) 11... Nc5 {[%emt 0:10:20]} 12. Qc2 {[%emt 0:00:21]} dxe4 {[%emt 0:00:48]} 13. Nxe4 {[%emt 0:00:30]} Nfxe4 {[%emt 0:00:37]} 14. dxe4 {[%emt 0:00:08]} Qb6 {[%emt 0:06:56] Prevents b4.} 15. b4 {[%emt 0:02:19]} axb4 {[%emt 0:02:38]} 16. axb4 {[%emt 0:00:32]} Rxa1 {[%emt 0:03:07]} (16... Qxb4 {feels hotter.} 17. Rxa8 Rxa8 18. Bxe5 Bxe5 19. Nxe5 Be6) 17. Rxa1 {[%emt 0:00:13] [#] Black must now prevent Bxe5.} Qxb4 {[%emt 0:01:39]} 18. Bxe5 {[%emt 0:03:17]} Bxe5 {[%emt 0:18:51]} 19. Nxe5 {[%emt 0:00:22]} Be6 {[%emt 0:00:24]} 20. Rb1 {[%emt 0:01:54]} Qa5 {[%emt 0:01:02]} 21. h3 {[%emt 0:06:06]} f6 {[%emt 0:04:43]} (21... Qa3 $15) 22. Ng4 {[%emt 0:00:48]} (22. Nd3 $11) 22... Rd8 {[%emt 0:03:44]} 23. Rd1 {[%emt 0:08:05]} Bxg4 {[%emt 0:13:01]} 24. hxg4 {[%emt 0:01:03]} Rxd1+ {[%emt 0:02:29]} 25. Qxd1 $15 {[%emt 0:00:14][%mdl 4096] Endgame KQB-KQN} Qc7 {[%emt 0:00:22]} 26. Qd4 {[%emt 0:01:37]} Ne6 {[%emt 0:02:06]} 27. Qe3 {[%emt 0:01:54]} Qd7 {[%emt 0:03:59]} 28. e5 $1 {[%emt 0:08:00]} Qd1+ {[%emt 0:06:22]} 29. Kh2 {[%emt 0:00:20] And now exf6 would win.} Qd4 {[%emt 0:02:10]} 30. Qxd4 {[%emt 0:01:06]} Nxd4 {[%emt 0:00:02]} 31. exf6 {[%emt 0:00:16]} gxf6 $11 {[%emt 0:00:01] KB-KN} 32. Be4 {[%emt 0:02:23]} h6 {[%emt 0:05:30]} 33. Kg2 {[%emt 0:00:08]} Kf7 {[%emt 0:00:45]} 34. f4 {[%emt 0:00:21]} Ke6 {[%emt 0:00:56]} 35. Kf2 {[%emt 0:00:21]} Kd6 {[%emt 0:00:31]} 36. Ke3 {[%emt 0:00:23]} Kc5 {[%emt 0:00:31]} 37. Bd3 {[%emt 0:00:49]} b5 {[%emt 0:02:53]} 38. cxb5 {[%emt 0:00:14]} cxb5 {[%emt 0:00:08]} 39. Ke4 $2 {[%emt 0:00:30][%mdl 8192]} (39. Bg6 $11) 39... b4 $19 {[%emt 0:00:30] [#] Hoping for ...b3.} 40. g5 {[%emt 0:00:58]} hxg5 {[%emt 0:01:21]} 41. fxg5 {[%emt 0:00:07]} fxg5 {[%emt 0:00:15]} 42. Ke5 {[%emt 0:01:11]} b3 {[%emt 0:00:49]} 43. Bh7 {[%emt 0:04:22]} b2 {[%emt 0:01:09]} 44. Bb1 {[%emt 0:02:08]} Kc4 {[%emt 0:03:24]} 45. Kf6 {[%emt 0:01:02]} Nf3 {[%emt 0:01:15]} 46. Kg6 {[%emt 0:07:25]} Kd4 {[%emt 0:00:21]} 47. Kf6 {[%emt 0:02:55]} Ke3 {[%emt 0:01:34]} 48. Kf5 {[%emt 0:00:36]} Kf2 {[%emt 0:02:21]} 49. Kg4 {[%emt 0:00:19]} Kg2 $2 {[%emt 0:00:51]} (49... Ke2 {mates} 50. Kf5 Nd2 51. Bc2 Nc4 52. Bb1 Na3 53. Ba2 Nc2 54. Kg6 Kd2 55. Kh6 Kc1 56. Kxg5 Nb4 57. Bf7 b1=Q 58. Kf6 Qb2+ 59. Kg6 Nc6 60. Be6 Qe5 61. Bg8 Ne7+ 62. Kf7 Nd5 63. Kg6 Qf6+ 64. Kh5 Qf5+ 65. Kh6 Nf6 66. Kg7 Ng4 67. Bb3 Qf6+ 68. Kg8 Nh6+ 69. Kh7 Nf5 70. Kg8 Qg7#) 50. Be4 $11 {[%emt 0:00:34]} Kf2 $2 {[%emt 0:00:10][%mdl 8192]} (50... b1=R $11 51. Bxb1 Nh2+ 52. Kxg5 Kxg3) 51. Bb1 $1 $19 {[%emt 0:00:05]} Nh2+ $2 {[%emt 0:00:51]} ({Better is} 51... Ke2 $19 {( -> ...Nd4)} 52. Ba2 Nd2) 52. Kxg5 $11 {[%emt 0:01:56] The position is equal.} Kxg3 {[%emt 0:00:02]} 53. Kf5 {[%emt 0:00:34]} Kf3 {[%emt 0:00:11]} 54. Ke5 {[%emt 0:00:10]} Ke3 {[%emt 0:00:16]} 55. Kd5 {[%emt 0:00:21]} Kd2 {[%emt 0:00:51] Threatens to win with ...Kc3.} 56. Kc4 {[%emt 0:01:25]} Kc1 {[%emt 0:00:08]} 57. Bd3 {[%emt 0:02:08]} Nf3 {[%emt 0:00:24]} 58. Bh7 {[%emt 0:01:12]} Ne1 {[%emt 0:01:00]} 59. Kc3 {[%emt 0:00:23] Prevents Nc2.} Ng2 {[%emt 0:00:15]} 60. Kb3 {[%emt 0:00:23]} Ne3 {[%emt 0:01:02]} 61. Kc3 {[%emt 0:00:28]} Nd5+ {[%emt 0:00:27]} 62. Kb3 {[%emt 0:00:10]} Nc7 {[%emt 0:00:12]} 63. Kc3 {[%emt 0:01:21]} Nb5+ {[%emt 0:00:06]} 64. Kb3 {[%emt 0:00:16]} Nd4+ {[%emt 0:00:25]} 65. Kc3 $1 {[%emt 0:00:16]} Ne6 {[%emt 0:01:30]} 66. Kb3 {[%emt 0:00:12]} Ng5 {[%emt 0:00:05]} 67. Bg6 {[%emt 0:00:18]} Nf7 {[%emt 0:00:08]} 68. Bh7 {[%emt 0:00:12]} Ne5 {[%emt 0:00:33]} 69. Kc3 {[%emt 0:00:16]} Nf3 {[%emt 0:00:59]} 70. Kb3 {[%emt 0:00:13]} Nd4+ {[%emt 0:00:14]} 71. Kc3 $1 {[%emt 0:00:24]} Nf5 {[%emt 0:00:06]} 72. Bxf5 {[%emt 0:00:18]} b1=Q {[%emt 0:00:05]} 73. Bxb1 {[%emt 0:00:09]} Kxb1 {[%emt 0:00:04] Weighted Error Value: White=0.35/Black=0.31} 1/2-1/2